{"text_format":"3","workbook":"xlsx","n_sheets":3,"sheets":["Užduotys","Mėnesio rodinys","Savaitės rodinys"],"not_rendered":{"images":4,"defined_names":16},"read":"whole","date_system":"1900"}

{"sheet":"Užduotys","index":0,"n_rows":15,"n_cols":3,"rows_kept":15}
[null,"MĖNESIO RODINYS","SAVAITĖS RODINYS"]
[null," UŽDUOTYS"]
[null,"APRAŠAS","TERMINAS"]
[null,"1 užduotis",{"$f":"TODAY()","v":"2016-11-29"}]
[null,"2 užduotis",{"$f":"TODAY()+15","v":"2016-12-14"}]
[null,"3 užduotis",{"$f":"TODAY()+30","v":"2016-12-29"}]
[null,"4 užduotis",{"$f":"TODAY()+45","v":"2017-01-13"}]
[null,"5 užduotis",{"$f":"TODAY()+60","v":"2017-01-28"}]
[null,"6 užduotis",{"$f":"TODAY()+75","v":"2017-02-12"}]
[null,"7 užduotis",{"$f":"TODAY()+90","v":"2017-02-27"}]
[null,"8 užduotis",{"$f":"TODAY()+105","v":"2017-03-14"}]
[null,"9 užduotis",{"$f":"TODAY()+115","v":"2017-03-24"}]
[null,"10 užduotis",{"$f":"TODAY()+130","v":"2017-04-08"}]
[null,"11 užduotis",{"$f":"TODAY()+145","v":"2017-04-23"}]
[null,"12 užduotis",{"$f":"TODAY()+160","v":"2017-05-08"}]

{"sheet":"Mėnesio rodinys","index":1,"n_rows":17,"n_cols":8,"rows_kept":17,"merged":[[3,1,3,7]]}
[null,"UŽDUOTYS","SAVAITĖS RODINYS"]
[null,"Pasirinkite mėnesį:","Įveskite metus:"]
[null,9,{"$f":"YEAR(TODAY())","v":2016}]
[null," MĖNESIO RODINYS"]
[null,"PIRMADIENIS","ANTRADIENIS","TREČIADIENIS","KETVIRTADIENIS","PENKTADIENIS","ŠEŠTADIENIS","SEKMADIENIS"]
[null,{"$f":"IF(WEEKDAY(DATEVALUE(MenMetai&\"-\"&MenMenuo&\"-1\")-1)=COLUMN(A$2),1,IF(LEN(A6)>0,A6+1,\"\"))","v":""},"","",1,2,3,4]
[null,{"$f":"IF(LEN(B6)=0,\"\",IF(COUNTIF(Užduotys[TERMINAS],DATE(MenMetai,MenMenesioNumeris,B6))>0,\"Baigėsi užduoties terminas!\",\"\"))","v":""},{"$f":"IF(LEN(C6)=0,\"\",IF(COUNTIF(Užduotys[TERMINAS],DATE(MenMetai,MenMenesioNumeris,C6))>0,\"Baigėsi užduoties terminas!\",\"\"))","v":""},{"$f":"IF(LEN(D6)=0,\"\",IF(COUNTIF(Užduotys[TERMINAS],DATE(MenMetai,MenMenesioNumeris,D6))>0,\"Baigėsi užduoties terminas!\",\"\"))","v":""},{"$f":"IF(LEN(E6)=0,\"\",IF(COUNTIF(Užduotys[TERMINAS],DATE(MenMetai,MenMenesioNumeris,E6))>0,\"Baigėsi užduoties terminas!\",\"\"))","v":""},{"$f":"IF(LEN(F6)=0,\"\",IF(COUNTIF(Užduotys[TERMINAS],DATE(MenMetai,MenMenesioNumeris,F6))>0,\"Baigėsi užduoties terminas!\",\"\"))","v":""},{"$f":"IF(LEN(G6)=0,\"\",IF(COUNTIF(Užduotys[TERMINAS],DATE(MenMetai,MenMenesioNumeris,G6))>0,\"Baigėsi užduoties terminas!\",\"\"))","v":""},{"$f":"IF(LEN(H6)=0,\"\",IF(COUNTIF(Užduotys[TERMINAS],DATE(MenMetai,MenMenesioNumeris,H6))>0,\"Baigėsi užduoties terminas!\",\"\"))","v":""}]
[null,{"$f":"IF(LEN(H6)>0,IF(H6=DAY(DATE(MenMetai,MenMenesioNumeris+1,0)),\"\",H6+1),\"\")","v":5},{"$f":"IF(LEN(B8)>0,IF(B8=DAY(DATE(MenMetai,MenMenesioNumeris+1,0)),\"\",B8+1),\"\")","v":6},7,8,9,10,11]
[null,{"$f":"IF(LEN(B8)=0,\"\",IF(COUNTIF(Užduotys[TERMINAS],DATE(MenMetai,MenMenesioNumeris,B8))>0,\"Baigėsi užduoties terminas!\",\"\"))","v":""},{"$f":"IF(LEN(C8)=0,\"\",IF(COUNTIF(Užduotys[TERMINAS],DATE(MenMetai,MenMenesioNumeris,C8))>0,\"Baigėsi užduoties terminas!\",\"\"))","v":""},{"$f":"IF(LEN(D8)=0,\"\",IF(COUNTIF(Užduotys[TERMINAS],DATE(MenMetai,MenMenesioNumeris,D8))>0,\"Baigėsi užduoties terminas!\",\"\"))","v":""},{"$f":"IF(LEN(E8)=0,\"\",IF(COUNTIF(Užduotys[TERMINAS],DATE(MenMetai,MenMenesioNumeris,E8))>0,\"Baigėsi užduoties terminas!\",\"\"))","v":""},{"$f":"IF(LEN(F8)=0,\"\",IF(COUNTIF(Užduotys[TERMINAS],DATE(MenMetai,MenMenesioNumeris,F8))>0,\"Baigėsi užduoties terminas!\",\"\"))","v":""},{"$f":"IF(LEN(G8)=0,\"\",IF(COUNTIF(Užduotys[TERMINAS],DATE(MenMetai,MenMenesioNumeris,G8))>0,\"Baigėsi užduoties terminas!\",\"\"))","v":""},{"$f":"IF(LEN(H8)=0,\"\",IF(COUNTIF(Užduotys[TERMINAS],DATE(MenMetai,MenMenesioNumeris,H8))>0,\"Baigėsi užduoties terminas!\",\"\"))","v":""}]
[null,{"$f":"IF(LEN(H8)>0,IF(H8=DAY(DATE(MenMetai,MenMenesioNumeris+1,0)),\"\",H8+1),\"\")","v":12},{"$f":"IF(LEN(B10)>0,IF(B10=DAY(DATE(MenMetai,MenMenesioNumeris+1,0)),\"\",B10+1),\"\")","v":13},14,15,16,17,18]
[null,{"$f":"IF(LEN(B10)=0,\"\",IF(COUNTIF(Užduotys[TERMINAS],DATE(MenMetai,MenMenesioNumeris,B10))>0,\"Baigėsi užduoties terminas!\",\"\"))","v":""},{"$f":"IF(LEN(C10)=0,\"\",IF(COUNTIF(Užduotys[TERMINAS],DATE(MenMetai,MenMenesioNumeris,C10))>0,\"Baigėsi užduoties terminas!\",\"\"))","v":""},{"$f":"IF(LEN(D10)=0,\"\",IF(COUNTIF(Užduotys[TERMINAS],DATE(MenMetai,MenMenesioNumeris,D10))>0,\"Baigėsi užduoties terminas!\",\"\"))","v":""},{"$f":"IF(LEN(E10)=0,\"\",IF(COUNTIF(Užduotys[TERMINAS],DATE(MenMetai,MenMenesioNumeris,E10))>0,\"Baigėsi užduoties terminas!\",\"\"))","v":""},{"$f":"IF(LEN(F10)=0,\"\",IF(COUNTIF(Užduotys[TERMINAS],DATE(MenMetai,MenMenesioNumeris,F10))>0,\"Baigėsi užduoties terminas!\",\"\"))","v":""},{"$f":"IF(LEN(G10)=0,\"\",IF(COUNTIF(Užduotys[TERMINAS],DATE(MenMetai,MenMenesioNumeris,G10))>0,\"Baigėsi užduoties terminas!\",\"\"))","v":""},{"$f":"IF(LEN(H10)=0,\"\",IF(COUNTIF(Užduotys[TERMINAS],DATE(MenMetai,MenMenesioNumeris,H10))>0,\"Baigėsi užduoties terminas!\",\"\"))","v":""}]
[null,{"$f":"IF(LEN(H10)>0,IF(H10=DAY(DATE(MenMetai,MenMenesioNumeris+1,0)),\"\",H10+1),\"\")","v":19},{"$f":"IF(LEN(B12)>0,IF(B12=DAY(DATE(MenMetai,MenMenesioNumeris+1,0)),\"\",B12+1),\"\")","v":20},21,22,23,24,25]
[null,{"$f":"IF(LEN(B12)=0,\"\",IF(COUNTIF(Užduotys[TERMINAS],DATE(MenMetai,MenMenesioNumeris,B12))>0,\"Baigėsi užduoties terminas!\",\"\"))","v":""},{"$f":"IF(LEN(C12)=0,\"\",IF(COUNTIF(Užduotys[TERMINAS],DATE(MenMetai,MenMenesioNumeris,C12))>0,\"Baigėsi užduoties terminas!\",\"\"))","v":""},{"$f":"IF(LEN(D12)=0,\"\",IF(COUNTIF(Užduotys[TERMINAS],DATE(MenMetai,MenMenesioNumeris,D12))>0,\"Baigėsi užduoties terminas!\",\"\"))","v":""},{"$f":"IF(LEN(E12)=0,\"\",IF(COUNTIF(Užduotys[TERMINAS],DATE(MenMetai,MenMenesioNumeris,E12))>0,\"Baigėsi užduoties terminas!\",\"\"))","v":""},{"$f":"IF(LEN(F12)=0,\"\",IF(COUNTIF(Užduotys[TERMINAS],DATE(MenMetai,MenMenesioNumeris,F12))>0,\"Baigėsi užduoties terminas!\",\"\"))","v":""},{"$f":"IF(LEN(G12)=0,\"\",IF(COUNTIF(Užduotys[TERMINAS],DATE(MenMetai,MenMenesioNumeris,G12))>0,\"Baigėsi užduoties terminas!\",\"\"))","v":""},{"$f":"IF(LEN(H12)=0,\"\",IF(COUNTIF(Užduotys[TERMINAS],DATE(MenMetai,MenMenesioNumeris,H12))>0,\"Baigėsi užduoties terminas!\",\"\"))","v":""}]
[null,{"$f":"IF(LEN(H12)>0,IF(H12=DAY(DATE(MenMetai,MenMenesioNumeris+1,0)),\"\",H12+1),\"\")","v":26},{"$f":"IF(LEN(B14)>0,IF(B14=DAY(DATE(MenMetai,MenMenesioNumeris+1,0)),\"\",B14+1),\"\")","v":27},28,29,30,"",""]
[null,{"$f":"IF(LEN(B14)=0,\"\",IF(COUNTIF(Užduotys[TERMINAS],DATE(MenMetai,MenMenesioNumeris,B14))>0,\"Baigėsi užduoties terminas!\",\"\"))","v":""},{"$f":"IF(LEN(C14)=0,\"\",IF(COUNTIF(Užduotys[TERMINAS],DATE(MenMetai,MenMenesioNumeris,C14))>0,\"Baigėsi užduoties terminas!\",\"\"))","v":""},{"$f":"IF(LEN(D14)=0,\"\",IF(COUNTIF(Užduotys[TERMINAS],DATE(MenMetai,MenMenesioNumeris,D14))>0,\"Baigėsi užduoties terminas!\",\"\"))","v":""},{"$f":"IF(LEN(E14)=0,\"\",IF(COUNTIF(Užduotys[TERMINAS],DATE(MenMetai,MenMenesioNumeris,E14))>0,\"Baigėsi užduoties terminas!\",\"\"))","v":""},{"$f":"IF(LEN(F14)=0,\"\",IF(COUNTIF(Užduotys[TERMINAS],DATE(MenMetai,MenMenesioNumeris,F14))>0,\"Baigėsi užduoties terminas!\",\"\"))","v":""},{"$f":"IF(LEN(G14)=0,\"\",IF(COUNTIF(Užduotys[TERMINAS],DATE(MenMetai,MenMenesioNumeris,G14))>0,\"Baigėsi užduoties terminas!\",\"\"))","v":""},{"$f":"IF(LEN(H14)=0,\"\",IF(COUNTIF(Užduotys[TERMINAS],DATE(MenMetai,MenMenesioNumeris,H14))>0,\"Baigėsi užduoties terminas!\",\"\"))","v":""}]
[null,{"$f":"IF(LEN(H14)>0,IF(H14=DAY(DATE(MenMetai,MenMenesioNumeris+1,0)),\"\",H14+1),\"\")","v":""},{"$f":"IF(LEN(B16)>0,IF(B16=DAY(DATE(MenMetai,MenMenesioNumeris+1,0)),\"\",B16+1),\"\")","v":""},"","","","",""]
[null,{"$f":"IF(LEN(B16)=0,\"\",IF(COUNTIF(Užduotys[TERMINAS],DATE(MenMetai,MenMenesioNumeris,B16))>0,\"Baigėsi užduoties terminas!\",\"\"))","v":""},{"$f":"IF(LEN(C16)=0,\"\",IF(COUNTIF(Užduotys[TERMINAS],DATE(MenMetai,MenMenesioNumeris,C16))>0,\"Baigėsi užduoties terminas!\",\"\"))","v":""},{"$f":"IF(LEN(D16)=0,\"\",IF(COUNTIF(Užduotys[TERMINAS],DATE(MenMetai,MenMenesioNumeris,D16))>0,\"Baigėsi užduoties terminas!\",\"\"))","v":""},{"$f":"IF(LEN(E16)=0,\"\",IF(COUNTIF(Užduotys[TERMINAS],DATE(MenMetai,MenMenesioNumeris,E16))>0,\"Baigėsi užduoties terminas!\",\"\"))","v":""},{"$f":"IF(LEN(F16)=0,\"\",IF(COUNTIF(Užduotys[TERMINAS],DATE(MenMetai,MenMenesioNumeris,F16))>0,\"Baigėsi užduoties terminas!\",\"\"))","v":""},{"$f":"IF(LEN(G16)=0,\"\",IF(COUNTIF(Užduotys[TERMINAS],DATE(MenMetai,MenMenesioNumeris,G16))>0,\"Baigėsi užduoties terminas!\",\"\"))","v":""},{"$f":"IF(LEN(H16)=0,\"\",IF(COUNTIF(Užduotys[TERMINAS],DATE(MenMetai,MenMenesioNumeris,H16))>0,\"Baigėsi užduoties terminas!\",\"\"))","v":""}]

{"sheet":"Savaitės rodinys","index":2,"n_rows":17,"n_cols":8,"rows_kept":17,"merged":[[3,1,3,7]]}
[null,"UŽDUOTYS","MĖNESIO RODINYS"]
[null,"Pasirinkite mėnesį:","Įveskite metus:","Pasirinkite savaitės nr.:"]
[null,9,{"$f":"YEAR(TODAY())","v":2016},"1 savaitė"]
[null," SAVAITĖS RODINYS"]
[null,{"$f":"IF(WEEKDAY(DATEVALUE(SavMetai&\"-\"&SavMenuo&\"-1\")-1)=COLUMN(A$2),1,IF(LEN(A5)>0,A5+1,\"\"))","v":""},"","",1,2,3,4]
[null,{"$f":"IF(LEN(H5)>0,IF(H5=PaskutineMenesioDiena_Savaite,\"\",H5+1),\"\")","v":5},{"$f":"IF(LEN(B6)>0,IF(B6=PaskutineMenesioDiena_Savaite,\"\",B6+1),\"\")","v":6},7,8,9,10,11]
[null,{"$f":"IF(LEN(H6)>0,IF(H6=PaskutineMenesioDiena_Savaite,\"\",H6+1),\"\")","v":12},13,14,15,16,17,18]
[null,{"$f":"IF(LEN(H7)>0,IF(H7=PaskutineMenesioDiena_Savaite,\"\",H7+1),\"\")","v":19},20,21,22,23,24,25]
[null,{"$f":"IF(LEN(H8)>0,IF(H8=PaskutineMenesioDiena_Savaite,\"\",H8+1),\"\")","v":26},27,28,29,30,"",""]
[null,{"$f":"IF(LEN(H9)>0,IF(H9=PaskutineMenesioDiena_Savaite,\"\",H9+1),\"\")","v":""},"","","","","",""]
[null,"PIRMADIENIS","ANTRADIENIS","TREČIADIENIS","KETVIRTADIENIS","PENKTADIENIS","ŠEŠTADIENIS","SEKMADIENIS"]
[null,{"$f":"IF(B14=\"\",IF(AND(ISNUMBER(A12),A12<PaskutineMenesioDiena_Savaite),A12+1,\"\"),IF(B14<=7,\"\",INDEX(SavMenesioRodinys,SavSavaite,COLUMN(A$2))-7))","v":""},"","","","","",""]
[null,{"$f":"IF(LEN(B12)=0,\"\",IF(COUNTIF(Užduotys[TERMINAS],DATE(SavMetai,SavMenesioNumeris,B12))>0,\"Baigėsi užduoties terminas!\",\"\"))","v":""},{"$f":"IF(LEN(C12)=0,\"\",IF(COUNTIF(Užduotys[TERMINAS],DATE(SavMetai,SavMenesioNumeris,C12))>0,\"Baigėsi užduoties terminas!\",\"\"))","v":""},{"$f":"IF(LEN(D12)=0,\"\",IF(COUNTIF(Užduotys[TERMINAS],DATE(SavMetai,SavMenesioNumeris,D12))>0,\"Baigėsi užduoties terminas!\",\"\"))","v":""},{"$f":"IF(LEN(E12)=0,\"\",IF(COUNTIF(Užduotys[TERMINAS],DATE(SavMetai,SavMenesioNumeris,E12))>0,\"Baigėsi užduoties terminas!\",\"\"))","v":""},{"$f":"IF(LEN(F12)=0,\"\",IF(COUNTIF(Užduotys[TERMINAS],DATE(SavMetai,SavMenesioNumeris,F12))>0,\"Baigėsi užduoties terminas!\",\"\"))","v":""},{"$f":"IF(LEN(G12)=0,\"\",IF(COUNTIF(Užduotys[TERMINAS],DATE(SavMetai,SavMenesioNumeris,G12))>0,\"Baigėsi užduoties terminas!\",\"\"))","v":""},{"$f":"IF(LEN(H12)=0,\"\",IF(COUNTIF(Užduotys[TERMINAS],DATE(SavMetai,SavMenesioNumeris,H12))>0,\"Baigėsi užduoties terminas!\",\"\"))","v":""}]
[null,{"$f":"INDEX(SavMenesioRodinys,SavSavaite,COLUMN(A$2))","v":""},"","",1,2,3,4]
[null,{"$f":"IF(LEN(B14)=0,\"\",IF(COUNTIF(Užduotys[TERMINAS],DATE(SavMetai,SavMenesioNumeris,B14))>0,\"Baigėsi užduoties terminas!\",\"\"))","v":""},{"$f":"IF(LEN(C14)=0,\"\",IF(COUNTIF(Užduotys[TERMINAS],DATE(SavMetai,SavMenesioNumeris,C14))>0,\"Baigėsi užduoties terminas!\",\"\"))","v":""},{"$f":"IF(LEN(D14)=0,\"\",IF(COUNTIF(Užduotys[TERMINAS],DATE(SavMetai,SavMenesioNumeris,D14))>0,\"Baigėsi užduoties terminas!\",\"\"))","v":""},{"$f":"IF(LEN(E14)=0,\"\",IF(COUNTIF(Užduotys[TERMINAS],DATE(SavMetai,SavMenesioNumeris,E14))>0,\"Baigėsi užduoties terminas!\",\"\"))","v":""},{"$f":"IF(LEN(F14)=0,\"\",IF(COUNTIF(Užduotys[TERMINAS],DATE(SavMetai,SavMenesioNumeris,F14))>0,\"Baigėsi užduoties terminas!\",\"\"))","v":""},{"$f":"IF(LEN(G14)=0,\"\",IF(COUNTIF(Užduotys[TERMINAS],DATE(SavMetai,SavMenesioNumeris,G14))>0,\"Baigėsi užduoties terminas!\",\"\"))","v":""},{"$f":"IF(LEN(H14)=0,\"\",IF(COUNTIF(Užduotys[TERMINAS],DATE(SavMetai,SavMenesioNumeris,H14))>0,\"Baigėsi užduoties terminas!\",\"\"))","v":""}]
[null,{"$f":"IFERROR(IF(B14=\"\",IF(AND(ISNUMBER(A16),A16<PaskutineMenesioDiena_Savaite),A16+1,$H$14+COLUMN(A$2)),IF(B14+7>PaskutineMenesioDiena_Savaite,\"\",INDEX(SavMenesioRodinys,SavSavaite,COLUMN(A$2))+7)),\"\")","v":5},{"$f":"IFERROR(IF(C14=\"\",IF(AND(ISNUMBER(B16),B16<PaskutineMenesioDiena_Savaite),B16+1,$H$14+COLUMN(B$2)),IF(C14+7>PaskutineMenesioDiena_Savaite,\"\",INDEX(SavMenesioRodinys,SavSavaite,COLUMN(B$2))+7)),\"\")","v":6},{"$f":"IFERROR(IF(D14=\"\",IF(AND(ISNUMBER(C16),C16<PaskutineMenesioDiena_Savaite),C16+1,$H$14+COLUMN(C$2)),IF(D14+7>PaskutineMenesioDiena_Savaite,\"\",INDEX(SavMenesioRodinys,SavSavaite,COLUMN(C$2))+7)),\"\")","v":7},{"$f":"IFERROR(IF(E14=\"\",IF(AND(ISNUMBER(D16),D16<PaskutineMenesioDiena_Savaite),D16+1,$H$14+COLUMN(D$2)),IF(E14+7>PaskutineMenesioDiena_Savaite,\"\",INDEX(SavMenesioRodinys,SavSavaite,COLUMN(D$2))+7)),\"\")","v":8},{"$f":"IFERROR(IF(F14=\"\",IF(AND(ISNUMBER(E16),E16<PaskutineMenesioDiena_Savaite),E16+1,$H$14+COLUMN(E$2)),IF(F14+7>PaskutineMenesioDiena_Savaite,\"\",INDEX(SavMenesioRodinys,SavSavaite,COLUMN(E$2))+7)),\"\")","v":9},{"$f":"IFERROR(IF(G14=\"\",IF(AND(ISNUMBER(F16),F16<PaskutineMenesioDiena_Savaite),F16+1,$H$14+COLUMN(F$2)),IF(G14+7>PaskutineMenesioDiena_Savaite,\"\",INDEX(SavMenesioRodinys,SavSavaite,COLUMN(F$2))+7)),\"\")","v":10},{"$f":"IFERROR(IF(H14=\"\",IF(AND(ISNUMBER(G16),G16<PaskutineMenesioDiena_Savaite),G16+1,$H$14+COLUMN(G$2)),IF(H14+7>PaskutineMenesioDiena_Savaite,\"\",INDEX(SavMenesioRodinys,SavSavaite,COLUMN(G$2))+7)),\"\")","v":11}]
[null,{"$f":"IF(LEN(B16)=0,\"\",IF(COUNTIF(Užduotys[TERMINAS],DATE(SavMetai,SavMenesioNumeris,B16))>0,\"Baigėsi užduoties terminas!\",\"\"))","v":""},{"$f":"IF(LEN(C16)=0,\"\",IF(COUNTIF(Užduotys[TERMINAS],DATE(SavMetai,SavMenesioNumeris,C16))>0,\"Baigėsi užduoties terminas!\",\"\"))","v":""},{"$f":"IF(LEN(D16)=0,\"\",IF(COUNTIF(Užduotys[TERMINAS],DATE(SavMetai,SavMenesioNumeris,D16))>0,\"Baigėsi užduoties terminas!\",\"\"))","v":""},{"$f":"IF(LEN(E16)=0,\"\",IF(COUNTIF(Užduotys[TERMINAS],DATE(SavMetai,SavMenesioNumeris,E16))>0,\"Baigėsi užduoties terminas!\",\"\"))","v":""},{"$f":"IF(LEN(F16)=0,\"\",IF(COUNTIF(Užduotys[TERMINAS],DATE(SavMetai,SavMenesioNumeris,F16))>0,\"Baigėsi užduoties terminas!\",\"\"))","v":""},{"$f":"IF(LEN(G16)=0,\"\",IF(COUNTIF(Užduotys[TERMINAS],DATE(SavMetai,SavMenesioNumeris,G16))>0,\"Baigėsi užduoties terminas!\",\"\"))","v":""},{"$f":"IF(LEN(H16)=0,\"\",IF(COUNTIF(Užduotys[TERMINAS],DATE(SavMetai,SavMenesioNumeris,H16))>0,\"Baigėsi užduoties terminas!\",\"\"))","v":""}]